fUST/lending_fUST_20250302
["ID","MTS","AMOUNT","RATE_DAILY","PERIOD"]
[355105875,1740897048581,-500.0,0.00023642,2]
[355105876,1740897048592,-500.0,0.00023642,2]
[355105877,1740897048606,-748.07,0.00023642,2]
[355105878,1740897048617,-500.0,0.00023642,2]
[355105879,1740897048627,-500.0,0.00023642,2]
[355105880,1740897048639,-500.0,0.00023642,2]
[355105881,1740897048651,-500.0,0.00023642,2]
[355105882,1740897048662,-3133.23,0.00023642,2]
[355105883,1740897048672,-4292.74,0.00023642,2]
[355105884,1740897048684,-500.0,0.00023642,2]
[355105885,1740897048694,-500.0,0.00023642,2]
[355105886,1740897048705,-803.1,0.00023642,2]
[355105887,1740897048715,-1449.57,0.00023642,2]
[355105888,1740897048725,-500.0,0.00023642,2]
[355105889,1740897048736,-500.0,0.00023642,2]
[355105890,1740897048746,-500.0,0.00023642,2]
[355105891,1740897048757,-819.74,0.00023642,2]
[355105892,1740897048767,-500.0,0.00023642,2]
[355105893,1740897048778,-1319.12,0.00023642,2]
[355105894,1740897048788,-500.0,0.00023642,2]
[355105895,1740897048799,-500.0,0.00023642,2]
[355105896,1740897048810,-980.47,0.00023642,2]
[355105897,1740897048820,-624.6,0.00023643,2]
[355105898,1740897048832,-500.0,0.00023643,2]
[355105899,1740897048844,-500.0,0.00023643,2]
[355105900,1740897048855,-1279.94,0.00023643,2]
[355105901,1740897048867,-500.0,0.00023643,2]
[355105902,1740897048878,-500.0,0.00023643,2]
[355105903,1740897048889,-500.0,0.00023643,2]
[355105904,1740897048901,-3196.83,0.00023795,2]
[355105905,1740897048912,-1582.11,0.00023795,2]
[355105906,1740897048923,-500.0,0.00023795,2]
[355105907,1740897048934,-500.0,0.00023795,2]
[355105908,1740897048945,-500.0,0.00023795,2]
[355105909,1740897048955,-604.73,0.00023795,2]
[355105910,1740897048966,-500.0,0.00023795,2]
[355105911,1740897048977,-500.0,0.00023795,2]
[355105912,1740897048987,-605.8,0.00023795,2]
[355105913,1740897048998,-2021.42,0.00023795,2]
[355105914,1740897049008,-3510.35,0.00023795,2]
[355105915,1740897049019,-500.0,0.00023795,2]
[355105916,1740897049030,-921.7,0.00023795,2]
[355105917,1740897049040,-4905.85,0.00023795,2]
[355105918,1740897049051,-500.0,0.00023821,2]
[355105919,1740897049061,-500.0,0.00023821,2]
[355105920,1740897049072,-500.0,0.00023821,2]
[355105921,1740897049083,-500.0,0.00023821,2]
[355105922,1740897049094,-500.0,0.00023821,2]
[355105923,1740897049106,-319.27,0.00023821,2]
[355105924,1740897049118,-500.0,0.00023821,2]
[355105925,1740897049128,-250.0,0.00023821,2]
[355105926,1740897049140,-500.0,0.00023821,2]
[355105927,1740897049151,-500.0,0.00023821,2]
[355105928,1740897049162,-500.0,0.00023821,2]
[355105929,1740897049174,-500.0,0.00023821,2]
[355105930,1740897049184,-500.0,0.00023821,2]
[355105931,1740897049195,-500.0,0.00023821,2]
[355105932,1740897049206,-500.0,0.00023821,2]
[355105933,1740897049216,-561.29,0.00023821,2]
[355105934,1740897049227,-414.24,0.00023821,2]
[355105935,1740897049237,-500.0,0.00023821,2]
[355105936,1740897049248,-500.0,0.00023821,2]
[355105937,1740897049257,-500.0,0.00023821,2]
[355105938,1740897049268,-500.0,0.00023821,2]
[355105939,1740897049278,-461.76,0.00023821,2]
[355105940,1740897049289,-500.0,0.00023821,2]
[355105941,1740897049300,-399.54650694,0.00023821,2]
[355105942,1740897049311,-500.0,0.00023821,2]
[355105943,1740897049322,-500.0,0.00023821,2]
[355105944,1740897049333,-273.27,0.00023821,2]
[355105945,1740897049344,-500.0,0.00023821,2]
[355105946,1740897049354,-500.0,0.00023821,2]
[355105947,1740897049364,-500.0,0.00023821,2]
[355105948,1740897049375,-502.55,0.00023821,2]
[355105949,1740897049386,-500.0,0.00023821,2]
[355105950,1740897049396,-438.03236853,0.00023821,2]
[355105951,1740897049407,-500.0,0.00023821,2]
[355105952,1740897049418,-500.0,0.00023821,2]
[355105953,1740897049429,-438.3,0.00023821,2]
[355105954,1740897049439,-350.06178652,0.00023821,2]
[355105955,1740897049450,-583.8,0.00023821,2]
[355105956,1740897049461,-369.24,0.00023821,2]
[355105957,1740897049472,-500.0,0.00023821,2]
[355105958,1740897049484,-500.0,0.00023821,2]
[355105959,1740897049494,-500.0,0.00023821,2]
[355105960,1740897049504,-500.0,0.00023821,2]
[355105961,1740897049515,-500.0,0.00023905,2]
[355105962,1740897049526,-375.9,0.00023907,3]
[355105963,1740897049742,-160.0,0.00023912,2]
[355105964,1740897049754,-500.0,0.00023916,2]
[355105965,1740897049780,-500.0,0.00023916,2]
[355105966,1740897049792,-500.0,0.00023916,2]
[355105967,1740897049804,-500.0,0.00023916,2]
[355105968,1740897049815,-500.0,0.00023916,2]
[355105969,1740897049826,-500.0,0.00023916,2]
[355105970,1740897049838,-500.0,0.00023916,2]
[355105971,1740897049849,-500.0,0.00023916,2]
[355105972,1740897049860,-340.28,0.00023916,2]
[355105973,1740897049871,-500.0,0.00023916,2]
[355105974,1740897049882,-500.0,0.00023916,2]
[355105975,1740897049895,-500.0,0.00023916,2]
[355105976,1740897049906,-500.0,0.00023916,2]
[355105977,1740897049918,-500.0,0.00023916,2]
[355105978,1740897049930,-500.0,0.00023916,2]
[355105979,1740897049941,-500.0,0.00023916,2]
[355105980,1740897049952,-500.0,0.00023916,2]
[355105981,1740897049963,-500.0,0.00023916,2]
[355105982,1740897049974,-443.0,0.00023916,2]
[355105983,1740897049985,-500.0,0.00023916,2]
[355105984,1740897049997,-500.0,0.00023916,2]
[355105985,1740897050008,-500.0,0.00023916,2]
[355105986,1740897050019,-500.0,0.00023916,2]
[355105987,1740897050031,-500.0,0.00023916,2]
[355105988,1740897050042,-151.090186,0.00023916,7]
[355105989,1740897050054,-500.0,0.00023916,2]
[355105990,1740897050065,-151.0,0.00023916,7]
[355105991,1740897050076,-500.0,0.00023916,2]
[355105992,1740897050087,-500.0,0.00023916,2]
[355105993,1740897050099,-500.0,0.00023916,2]
[355105994,1740897050110,-151.0,0.00023916,7]
[355105995,1740897050121,-151.0,0.00023916,7]
[355105996,1740897050132,-2602.57,0.00023916,2]
[355105997,1740897050144,-2177.79,0.00023916,2]
[355105998,1740897050157,-151.0,0.00023916,7]
[355105999,1740897050168,-500.0,0.00023916,2]
[355106000,1740897050179,-616.35,0.00023916,2]
[355106001,1740897050190,-50625.72,0.00023916,2]
[355106002,1740897050201,-2770.77,0.00023916,2]
[355106003,1740897050211,-151.0,0.00023916,7]
[355106004,1740897050222,-500.0,0.00023916,2]
[355106005,1740897050233,-1033.66,0.00023916,2]
[355106006,1740897050243,-500.0,0.00023916,2]
[355106007,1740897050254,-1061.33,0.00023916,2]
[355106008,1740897050267,-500.0,0.00023916,2]
[355106009,1740897050288,-151.0,0.00023916,7]
[355106010,1740897050299,-570.36,0.00023916,2]
[355106011,1740897050309,-2343.12,0.00023916,2]
[355106012,1740897050321,-346.612221,0.00023916,7]
[355106013,1740897050332,-500.0,0.00023916,2]
[355106014,1740897050342,-346.612221,0.00023916,7]
[355106015,1740897050352,-1559.77,0.00023916,2]
[355106016,1740897050363,-5186.82,0.00023916,2]
[355106017,1740897050374,-500.0,0.00023916,2]
[355106018,1740897050385,-151.0,0.00023916,7]
[355106019,1740897050395,-151.0,0.00023916,7]
[355106020,1740897050407,-500.0,0.00023916,2]
[355106021,1740897050418,-501.13,0.00023916,2]
[355106022,1740897050428,-2849.98,0.00023916,2]
[355106023,1740897050438,-151.0,0.00023916,7]
[355106024,1740897050448,-500.0,0.00023916,2]
[355106025,1740897050459,-633.27,0.00023916,2]
[355106026,1740897050470,-500.0,0.00023916,2]
[355106027,1740897050481,-1105.48,0.00023916,2]
[355106028,1740897050491,-151.0,0.00023916,7]
[355106029,1740897050501,-500.0,0.00023916,2]
[355106030,1740897050512,-500.0,0.00023916,2]
[355106031,1740897050523,-500.0,0.00023916,2]
[355106032,1740897050534,-500.0,0.00023916,2]
[355106033,1740897050544,-500.0,0.00023916,2]
[355106034,1740897050555,-500.0,0.00023916,2]
[355106035,1740897050566,-748.07,0.00023916,2]
[355106036,1740897050576,-151.0,0.00023916,7]
[355106037,1740897050586,-500.0,0.00023916,2]
[355106038,1740897050597,-500.0,0.00023916,2]
[355106039,1740897050610,-3133.23,0.00023916,2]
[355106040,1740897050622,-4292.74,0.00023916,2]
[355106041,1740897050632,-803.1,0.00023916,2]
[355106042,1740897050642,-1449.57,0.00023916,2]
[355106043,1740897050655,-500.0,0.00023916,2]
[355106044,1740897050665,-283.459187,0.00023916,7]
[355106045,1740897050675,-500.0,0.00023916,2]
[355106046,1740897050685,-500.0,0.00023916,2]
[355106047,1740897050696,-151.0,0.00023916,7]
[355106048,1740897050707,-819.74,0.00023916,2]
[355106049,1740897050718,-500.0,0.00023916,2]
[355106050,1740897050729,-1319.12,0.00023916,2]
[355106051,1740897050739,-151.0,0.00023916,7]
[355106052,1740897050750,-500.0,0.00023916,2]
[355106053,1740897050760,-980.47,0.00023916,2]
[355106054,1740897050771,-624.6,0.00023917,2]
[355106055,1740897050780,-500.0,0.00023917,2]
[355106056,1740897050791,-500.0,0.00023917,2]
[355106057,1740897050802,-1279.94,0.00023917,2]
[355106058,1740897050812,-500.0,0.00023917,2]
[355106059,1740897050823,-500.0,0.00023917,2]
[355106060,1740897050833,-197.27,0.00023917,2]
[355106061,1740897050849,-549.4979186,0.00023924,2]
[355106062,1740897050860,-160.0,0.00023966,2]
[355106063,1740897050871,-19629.85965445,0.00023966,2]
[355106064,1740897050881,-160.0,0.00023966,2]
[355106065,1740897050893,-500.0,0.00023973,2]
[355106066,1740897050904,-501.24495111,0.00023973,2]
[355106067,1740897050915,-250.20419285,0.00023973,2]
[355106068,1740897050926,-150.0,0.00023973,2]
[355106069,1740897050937,-500.0,0.00024,30]
[355106070,1740897050948,-500.0,0.00024,30]
[355106071,1740897050959,-500.0,0.00024,30]
[355106072,1740897050970,-500.0,0.00024,30]
[355106073,1740897050981,-500.0,0.00024,30]
[355106074,1740897050991,-500.0,0.00024,30]
[355106075,1740897051002,-500.0,0.00024,30]
[355106076,1740897051012,-500.0,0.00024,30]
[355106077,1740897051022,-500.0,0.00024,30]
[355106078,1740897051033,-500.0,0.00024,30]
[355106079,1740897051043,-500.0,0.00024,30]
[355106080,1740897051055,-500.0,0.00024,30]
[355106081,1740897051066,-500.0,0.00024,30]
[355106082,1740897051076,-500.0,0.00024,30]
[355106083,1740897051087,-500.0,0.00024,30]
[355106084,1740897051097,-500.0,0.00024,30]
[355106085,1740897051107,-500.0,0.00024,30]
[355106086,1740897051117,-500.0,0.00024,30]
[355106087,1740897051128,-500.0,0.00024,30]
[355106088,1740897051139,-500.0,0.00024,30]
[355106089,1740897051149,-700.0,0.00024,30]
[355106090,1740897051161,-700.0,0.00024,30]
[355106091,1740897051172,-700.0,0.00024,30]
[355106092,1740897051183,-700.0,0.00024,30]
[355106093,1740897051194,-700.0,0.00024,30]
[355106094,1740897051206,-700.0,0.00024,30]
[355106095,1740897051216,-700.0,0.00024,30]
[355106096,1740897051227,-700.0,0.00024,30]
[355106097,1740897051237,-700.0,0.00024,30]
[355106098,1740897051248,-700.0,0.00024,30]
[355106099,1740897051258,-700.0,0.00024,30]
[355106100,1740897051268,-700.0,0.00024,30]
[355106101,1740897051278,-700.0,0.00024,30]
[355106102,1740897051288,-500.0,0.00024,30]
[355106103,1740897051299,-151.0,0.00024,7]
[355106104,1740897051309,-151.0,0.00024,7]
[355106105,1740897051319,-151.0,0.00024,7]
[355106106,1740897051329,-151.0,0.00024,7]
[355106107,1740897051339,-151.0,0.00024,7]
[355106108,1740897051349,-1663.31662493,0.00024,2]
[355106109,1740897051358,-160.0,0.00024,10]
[355106110,1740897051369,-41334.43461128,0.00024,2]
[355106111,1740897051379,-19629.85965445,0.00024,30]
[355106112,1740897051389,-2124.196674,0.00024011,2]
[355106113,1740897051399,-3196.83,0.00024069,2]
[355106114,1740897051411,-1582.11,0.00024069,2]
[355106115,1740897051421,-500.0,0.00024069,2]
[355106116,1740897051431,-500.0,0.00024069,2]
[355106117,1740897051442,-604.73,0.00024069,2]
[355106118,1740897051452,-500.0,0.00024069,2]
[355106119,1740897051462,-605.8,0.00024069,2]
[355106120,1740897051472,-2021.42,0.00024069,2]
[355106121,1740897051483,-3510.35,0.00024069,2]
[355106122,1740897051493,-500.0,0.00024069,2]
[355106123,1740897051503,-921.7,0.00024069,2]
[355106124,1740897051513,-4905.85,0.00024069,2]
[355106125,1740897051523,-500.0,0.00024095,2]
[355106126,1740897051533,-500.0,0.00024095,2]
[355106127,1740897051543,-446.78,0.00024095,2]
[355106128,1740897051553,-250.0,0.00024095,2]
[355106129,1740897051563,-500.0,0.00024095,2]
[355106130,1740897051574,-511.84,0.00024095,2]
[355106131,1740897051584,-500.0,0.00024095,2]
[355106132,1740897051595,-500.0,0.00024095,2]
[355106133,1740897051607,-500.0,0.00024095,2]
[355106134,1740897051619,-500.0,0.00024095,2]
[355106135,1740897051629,-500.0,0.00024095,2]
[355106136,1740897051640,-500.0,0.00024095,2]
[355106137,1740897051651,-500.0,0.00024095,2]
[355106138,1740897051663,-500.0,0.00024095,2]
[355106139,1740897051674,-500.0,0.00024095,2]
[355106140,1740897051685,-500.0,0.00024095,2]
[355106141,1740897051695,-500.0,0.00024095,2]
[355106142,1740897051705,-500.0,0.00024095,2]
[355106143,1740897051716,-500.0,0.00024095,2]
[355106144,1740897051726,-249.66,0.00024095,2]
[355106145,1740897051736,-500.0,0.00024095,2]
[355106146,1740897051746,-611.91,0.00024095,2]
[355106147,1740897051756,-500.0,0.00024095,2]
[355106148,1740897051766,-500.0,0.00024095,2]
[355106149,1740897051777,-500.0,0.00024109,2]
[355106150,1740897051787,-500.0,0.00024109,2]
[355106151,1740897051797,-500.0,0.00024109,2]
[355106152,1740897051808,-500.0,0.00024109,2]
[355106153,1740897051819,-500.0,0.00024109,2]
[355106154,1740897051830,-500.0,0.0002419,2]
[355106155,1740897051840,-500.0,0.0002419,2]
[355106156,1740897051851,-500.0,0.0002419,2]
[355106157,1740897051861,-500.0,0.0002419,2]
[355106158,1740897051871,-500.0,0.0002419,2]
[355106159,1740897051881,-500.0,0.0002419,2]
[355106160,1740897051891,-500.0,0.0002419,2]
[355106161,1740897051901,-500.0,0.0002419,2]
[355106162,1740897051914,-500.0,0.0002419,2]
[355106163,1740897051925,-500.0,0.0002419,2]
[355106164,1740897051936,-500.0,0.0002419,2]
[355106165,1740897051946,-500.0,0.0002419,2]
[355106166,1740897051956,-500.0,0.0002419,2]
[355106167,1740897051966,-500.0,0.0002419,2]
[355106168,1740897051977,-500.0,0.0002419,2]
[355106169,1740897051987,-500.0,0.0002419,2]
[355106170,1740897051998,-500.0,0.0002419,2]
[355106171,1740897052008,-500.0,0.0002419,2]
[355106172,1740897052018,-500.0,0.0002419,2]
[355106173,1740897052028,-500.0,0.0002419,2]
[355106174,1740897052039,-500.0,0.0002419,2]
[355106175,1740897052049,-2602.57,0.0002419,2]
[355106176,1740897052059,-2177.79,0.0002419,2]
[355106177,1740897052070,-616.35,0.0002419,2]
[355106178,1740897052080,-50625.72,0.0002419,2]
[355106179,1740897052090,-2770.77,0.0002419,2]
[355106180,1740897052100,-500.0,0.0002419,2]
[355106181,1740897052111,-1033.66,0.0002419,2]
[355106182,1740897052121,-500.0,0.0002419,2]
[355106183,1740897052131,-1061.33,0.0002419,2]
[355106184,1740897052142,-500.0,0.0002419,2]
[355106185,1740897052153,-570.36,0.0002419,2]
[355106186,1740897052164,-2343.12,0.0002419,2]
[355106187,1740897052175,-500.0,0.0002419,2]
[355106188,1740897052184,-500.0,0.0002419,2]
[355106189,1740897052195,-1559.77,0.0002419,2]
[355106190,1740897052206,-5186.82,0.0002419,2]
[355106191,1740897052217,-500.0,0.0002419,2]
[355106192,1740897052228,-2849.98,0.0002419,2]
[355106193,1740897052238,-500.0,0.0002419,2]
[355106194,1740897052249,-633.27,0.0002419,2]
[355106195,1740897052259,-336.47345813,0.0002419,2]
[355106196,1740897052270,-1105.48,0.0002419,2]
[355106197,1740897052280,-500.0,0.0002419,2]
[355106198,1740897052292,-500.0,0.0002419,2]
[355106199,1740897052412,-448.83,0.0002419,2]
[355106200,1740897052426,-500.0,0.0002419,2]
[355106201,1740897052436,-500.0,0.0002419,2]
[355106202,1740897052447,-748.07,0.0002419,2]
[355106203,1740897052457,-500.0,0.0002419,2]
[355106204,1740897052467,-3133.23,0.0002419,2]
[355106205,1740897052477,-4292.74,0.0002419,2]
[355106206,1740897052487,-803.1,0.0002419,2]
[355106207,1740897052497,-1449.57,0.0002419,2]
[355106208,1740897052507,-500.0,0.0002419,2]
[355106209,1740897052518,-500.0,0.0002419,2]
[355106210,1740897052527,-500.0,0.0002419,2]
[355106211,1740897052537,-151.0,0.0002419,7]
[355106212,1740897052547,-819.74,0.0002419,2]
[355106213,1740897052557,-500.0,0.0002419,2]
[355106214,1740897052567,-1319.12,0.0002419,2]
[355106215,1740897052577,-151.0,0.0002419,7]
[355106216,1740897052587,-500.0,0.0002419,2]
[355106217,1740897052596,-624.6,0.00024191,2]
[355106218,1740897052607,-500.0,0.00024191,2]
[355106219,1740897052620,-500.0,0.00024191,2]
[355106220,1740897052631,-1279.94,0.00024191,2]
[355106221,1740897052640,-331.9,0.00024191,2]
[355106222,1740897052651,-500.0,0.00024191,2]
[355106223,1740897052665,-420.0,0.00024196,2]
[355106224,1740897052675,-549.4979186,0.00024265,2]
[355106225,1740897052687,-204.04207539,0.000243,3]
[355106226,1740897052697,-204.04207536,0.000243,3]
[355106227,1740897052708,-3196.83,0.00024343,2]
[355106228,1740897052717,-1582.11,0.00024343,2]
[355106229,1740897052727,-500.0,0.00024343,2]
[355106230,1740897052737,-500.0,0.00024343,2]
[355106231,1740897052746,-604.73,0.00024343,2]
[355106232,1740897052757,-500.0,0.00024343,2]
[355106233,1740897052766,-605.8,0.00024343,2]
[355106234,1740897052777,-2021.42,0.00024343,2]
[355106235,1740897052787,-3510.35,0.00024343,2]
[355106236,1740897052797,-500.0,0.00024343,2]
[355106237,1740897052806,-921.7,0.00024343,2]
[355106238,1740897052815,-4905.85,0.00024343,2]
[355106239,1740897052826,-222000.0,0.00024365,2]
[355106240,1740897052837,-151.0,0.00024365,7]
[355106241,1740897052847,-151.0,0.00024365,7]
[355106242,1740897052856,-151.0,0.00024365,7]
[355106243,1740897052866,-151.0,0.00024365,7]
[355106244,1740897052876,-151.0,0.00024365,7]
[355106245,1740897052885,-151.0,0.00024365,7]
[355106246,1740897052895,-151.0,0.00024365,7]
[355106247,1740897052908,-151.0,0.00024365,7]
[355106248,1740897052919,-151.0,0.00024365,7]
[355106249,1740897052928,-346.612221,0.00024365,7]
[355106250,1740897052937,-346.612221,0.00024365,7]
[355106251,1740897052948,-151.0,0.00024365,7]
[355106252,1740897052959,-151.0,0.00024365,7]
[355106253,1740897052970,-151.0,0.00024365,7]
[355106254,1740897052985,-151.0,0.00024365,7]
[355106255,1740897052996,-151.0,0.00024365,7]
[355106256,1740897053006,-500.0,0.00024369,2]
[355106257,1740897053017,-500.0,0.00024369,2]
[355106258,1740897053027,-250.0,0.00024369,2]
[355106259,1740897053037,-500.0,0.00024369,2]
[355106260,1740897053048,-394.09,0.00024369,2]
[355106261,1740897053058,-155.14,0.00024369,2]
[355106262,1740897053069,-500.0,0.00024369,2]
[355106263,1740897053079,-400.07,0.00024369,2]
[355106264,1740897053090,-500.0,0.00024369,2]
[355106265,1740897053100,-500.0,0.00024369,2]
[355106266,1740897053111,-500.0,0.00024369,2]
[355106267,1740897053121,-500.0,0.00024369,2]
[355106268,1740897053131,-500.0,0.00024369,2]
[355106269,1740897053141,-500.0,0.00024369,2]
[355106270,1740897053152,-500.0,0.00024369,2]
[355106271,1740897053164,-500.0,0.00024369,2]
[355106272,1740897053174,-500.0,0.00024369,2]
[355106273,1740897053185,-500.0,0.00024369,2]
[355106274,1740897053196,-500.0,0.00024464,2]
[355106275,1740897053207,-500.0,0.00024464,2]
[355106276,1740897053218,-500.0,0.00024464,2]
[355106277,1740897053228,-500.0,0.00024464,2]
[355106278,1740897053238,-500.0,0.00024464,2]
[355106279,1740897053248,-500.0,0.00024464,2]
[355106280,1740897053258,-500.0,0.00024464,2]
[355106281,1740897053267,-500.0,0.00024464,2]
[355106282,1740897053278,-533.33,0.00024464,2]
[355106283,1740897053288,-500.0,0.00024464,2]
[355106284,1740897053298,-500.0,0.00024464,2]
[355106285,1740897053308,-500.0,0.00024464,2]
[355106286,1740897053318,-363.82,0.00024464,2]
[355106287,1740897053329,-212.68,0.00024464,2]
[355106288,1740897053339,-409.66952534,0.00024464,2]
[355106289,1740897053350,-500.0,0.00024464,2]
[355106290,1740897053360,-249.37,0.00024464,2]
[355106291,1740897053369,-500.0,0.00024464,2]
[355106292,1740897053379,-500.0,0.00024464,2]
[355106293,1740897053389,-500.0,0.00024464,2]
[355106294,1740897053399,-2602.57,0.00024464,2]
[355106295,1740897053410,-2177.79,0.00024464,2]
[355106296,1740897053423,-616.35,0.00024464,2]
[355106297,1740897053432,-50625.72,0.00024464,2]
[355106298,1740897053442,-2770.77,0.00024464,2]
[355106299,1740897053452,-500.0,0.00024464,2]
[355106300,1740897053462,-1033.66,0.00024464,2]
[355106301,1740897053473,-500.0,0.00024464,2]
[355106302,1740897053483,-1061.33,0.00024464,2]
[355106303,1740897053494,-500.0,0.00024464,2]
[355106304,1740897053505,-570.36,0.00024464,2]
[355106305,1740897053515,-2343.12,0.00024464,2]
[355106306,1740897053526,-500.0,0.00024464,2]
[355106307,1740897053536,-500.0,0.00024464,2]
[355106308,1740897053547,-1559.77,0.00024464,2]
[355106309,1740897053557,-5186.82,0.00024464,2]
[355106310,1740897053567,-500.0,0.00024464,2]
[355106311,1740897053578,-2849.98,0.00024464,2]
[355106312,1740897053588,-500.0,0.00024464,2]
[355106313,1740897053598,-633.27,0.00024464,2]
[355106314,1740897053608,-1105.48,0.00024464,2]
[355106315,1740897053622,-500.0,0.00024464,2]
[355106316,1740897053632,-500.0,0.00024464,2]
[355106317,1740897053642,-500.0,0.00024464,2]
[355106318,1740897053653,-500.0,0.00024464,2]
[355106319,1740897053665,-748.07,0.00024464,2]
[355106320,1740897053675,-500.0,0.00024464,2]
[355106321,1740897053687,-3133.23,0.00024464,2]
[355106322,1740897053697,-4292.74,0.00024464,2]
[355106323,1740897053708,-803.1,0.00024464,2]
[355106324,1740897053717,-1449.57,0.00024464,2]
[355106325,1740897053727,-500.0,0.00024464,2]
[355106326,1740897053737,-500.0,0.00024464,2]
[355106327,1740897053747,-500.0,0.00024464,2]
[355106328,1740897053758,-819.74,0.00024464,2]
[355106329,1740897053767,-569.43,0.00024464,2]
[355106330,1740897053778,-1319.12,0.00024464,2]
[355106331,1740897053787,-500.0,0.00024464,2]
[355106332,1740897053797,-624.6,0.00024465,2]
[355106333,1740897053807,-500.0,0.00024465,2]
[355106334,1740897053817,-500.0,0.00024465,2]
[355106335,1740897053827,-1279.94,0.00024465,2]
[355106336,1740897053837,-500.0,0.00024465,2]
[355106337,1740897053847,-268.1102791,0.00024521,2]
[355106338,1740897053858,-3196.83,0.00024617,2]
[355106339,1740897053868,-1582.11,0.00024617,2]
[355106340,1740897053878,-500.0,0.00024617,2]
[355106341,1740897053889,-500.0,0.00024617,2]
[355106342,1740897053899,-604.73,0.00024617,2]
[355106343,1740897053910,-500.0,0.00024617,2]
[355106344,1740897053920,-605.8,0.00024617,2]
[355106345,1740897053930,-2021.42,0.00024617,2]
[355106346,1740897053940,-3510.35,0.00024617,2]
[355106347,1740897053950,-500.0,0.00024617,2]
[355106348,1740897053960,-921.7,0.00024617,2]
[355106349,1740897053970,-4905.85,0.00024617,2]
[355106350,1740897053980,-635.04,0.00024643,2]
[355106351,1740897053990,-500.0,0.00024643,2]
[355106352,1740897054000,-200.75,0.00024643,2]
[355106353,1740897054011,-437.77,0.00024643,2]
[355106354,1740897054022,-500.0,0.00024643,2]
[355106355,1740897054032,-500.0,0.00024643,2]
[355106356,1740897054042,-500.0,0.00024643,2]
[355106357,1740897054053,-500.0,0.00024643,2]
[355106358,1740897054064,-500.0,0.00024643,2]
[355106359,1740897054074,-500.0,0.00024643,2]
[355106360,1740897054084,-378.94,0.00024643,2]
[355106361,1740897054095,-469.78,0.00024643,2]
[355106362,1740897054106,-400.0,0.00024658,7]
[355106363,1740897054117,-380.0,0.00024658,2]
[355106364,1740897054128,-151.0,0.00024658,7]
[355106365,1740897054138,-151.0,0.00024658,7]
[355106366,1740897054148,-151.0,0.00024658,7]
[355106367,1740897054159,-151.0,0.00024658,7]
[355106368,1740897054169,-151.0,0.00024658,7]
[355106369,1740897054180,-151.0,0.00024658,7]
[355106370,1740897054191,-151.0,0.00024658,7]
[355106371,1740897054201,-151.0,0.00024658,7]
[355106372,1740897054212,-151.0,0.00024658,7]
[355106373,1740897054222,-151.0,0.00024658,7]
[355106374,1740897054233,-151.0,0.00024658,7]